lending/lending_fUSD_20240111
["ID","MTS","AMOUNT","RATE_DAILY","PERIOD"]
[311179304,1704970257112,-500.0,0.00038356,4]
[311179305,1704970257121,-500.0,0.00038356,4]
[311179306,1704970257130,-500.0,0.00038356,4]
[311179307,1704970257140,-500.0,0.00038356,4]
[311179308,1704970257149,-500.0,0.00038356,4]
[311179309,1704970257159,-500.0,0.00038356,4]
[311179310,1704970257168,-500.0,0.00038356,4]
[311179311,1704970257177,-871.78,0.00038356,4]
[311179312,1704970257187,-500.0,0.00038356,4]
[311179313,1704970257197,-500.0,0.00038356,4]
[311179314,1704970257207,-500.0,0.00038356,4]
[311179315,1704970257219,-500.0,0.00038356,4]
[311179316,1704970257229,-826.56,0.00038356,4]
[311179317,1704970257238,-500.0,0.00038356,4]
[311179318,1704970257247,-579.69,0.00038356,5]
[311179319,1704970257257,-500.0,0.00038356,4]
[311179320,1704970257266,-568.95,0.00038356,4]
[311179321,1704970257275,-500.0,0.00038356,4]
[311179322,1704970257283,-500.0,0.00038356,4]
[311179323,1704970257292,-500.0,0.00038356,4]
[311179324,1704970257301,-500.0,0.00038356,4]
[311179325,1704970257311,-1418.47,0.00038356,4]
[311179326,1704970257321,-832.56,0.00038356,4]
[311179327,1704970257330,-588.0,0.00038356,4]
[311179328,1704970257340,-678.71,0.00038356,4]
[311179329,1704970257350,-500.0,0.00038356,4]
[311179330,1704970257359,-500.0,0.00038356,4]
[311179331,1704970257370,-525.27527903,0.00038356,15]
[311179332,1704970257379,-500.0,0.00038356,4]
[311179333,1704970257387,-500.0,0.00038356,4]
[311179334,1704970257396,-500.0,0.00038356,14]
[311179335,1704970257406,-500.0,0.00038356,14]
[311179336,1704970257415,-503.25931812,0.00038356,14]
[311179337,1704970257424,-500.0,0.00038356,4]
[311179338,1704970257433,-681.92,0.00038356,4]
[311179339,1704970257443,-500.0,0.00038356,4]
[311179340,1704970257452,-500.0,0.00038356,4]
[311179341,1704970257461,-533.4,0.00038356,4]
[311179342,1704970257473,-976.2,0.00038356,5]
[311179343,1704970257482,-500.0,0.00038356,4]
[311179344,1704970257492,-500.0,0.00038356,4]
[311179345,1704970257501,-5800.39,0.00038356,4]
[311179346,1704970257511,-607.40053014,0.00038356,4]
[311179347,1704970257520,-500.0,0.00038356,4]
[311179348,1704970257529,-228.77989497,0.00038356,4]
[311179349,1704970257538,-507.71,0.00038356,4]
[311179350,1704970257547,-612.0,0.00038356,4]
[311179351,1704970257557,-500.0,0.00038356,4]
[311179352,1704970257566,-610.62,0.00038356,4]
[311179353,1704970257575,-601.47886287,0.00038356,4]
[311179354,1704970257585,-500.0,0.00038356,4]
[311179355,1704970257594,-151.45,0.00038356,2]
[311179356,1704970257604,-3429.09,0.00038356,2]
[311179357,1704970257613,-150.0,0.00038359,2]
[311179358,1704970257622,-150.0,0.00038359,2]
[311179359,1704970257631,-20000.0,0.0003836,15]
[311179360,1704970257641,-940.51163004,0.00038394,8]
[311179361,1704970257650,-151.40111,0.00038398,8]
[311179362,1704970257659,-1999.30430025,0.000384,2]
[311179363,1704970257669,-159.0551351,0.000384,2]
[311179364,1704970257679,-214.97188308,0.000384,2]
[311179365,1704970257689,-3405.59609799,0.000384,2]
[311179366,1704970257698,-1000.0,0.000384,30]
[311179367,1704970257708,-1000.0,0.000384,2]
[311179368,1704970257718,-8000.0,0.000384,2]
[311179369,1704970257726,-1184.851182,0.00038496,2]
[311179370,1704970257735,-594.856558,0.00038496,2]
[311179371,1704970257744,-151.40111,0.00038498,8]
[311179372,1704970257754,-657.12887245,0.000385,2]
[311179373,1704970257763,-15080.96,0.000385,7]
[311179374,1704970257772,-153.84,0.00038562,2]
[311179375,1704970257782,-1000.0,0.0003857,15]
[311179376,1704970257792,-151.40111,0.00038598,8]
[311179377,1704970257801,-14201.07,0.000386,7]
[311179378,1704970257811,-9114.5,0.000386,7]
[311179379,1704970257820,-153.96,0.00038603,2]
[311179380,1704970257829,-500.0,0.0003863,4]
[311179381,1704970257840,-179.14381509,0.0003863,4]
[311179382,1704970257850,-552.96,0.0003863,4]
[311179383,1704970257862,-610.54,0.0003863,4]
[311179384,1704970257872,-421.63565442,0.0003863,4]
[311179385,1704970257884,-530.85,0.0003863,4]
[311179386,1704970257895,-500.0,0.0003863,4]
[311179387,1704970257906,-865.67,0.0003863,4]
[311179388,1704970257916,-200.18270507,0.0003863,4]
[311179389,1704970257928,-500.0,0.0003863,4]
[311179390,1704970257938,-500.0,0.0003863,4]
[311179391,1704970257948,-500.0,0.0003863,4]
[311179392,1704970257958,-486.37286703,0.0003863,4]
[311179393,1704970257969,-500.0,0.0003863,4]
[311179394,1704970257978,-500.0,0.0003863,4]
[311179395,1704970257987,-500.0,0.0003863,4]
[311179396,1704970257996,-500.0,0.0003863,4]
[311179397,1704970258006,-566.7,0.0003863,4]
[311179398,1704970258015,-973.2,0.0003863,4]
[311179399,1704970258025,-559.47,0.0003863,4]
[311179400,1704970258034,-554.87,0.0003863,4]
[311179401,1704970258043,-500.0,0.0003863,4]
[311179402,1704970258052,-500.0,0.0003863,4]
[311179403,1704970258062,-825.18,0.0003863,4]
[311179404,1704970258071,-500.0,0.0003863,4]
[311179405,1704970258081,-500.0,0.0003863,4]
[311179406,1704970258091,-500.0,0.0003863,4]
[311179407,1704970258101,-500.0,0.0003863,4]
[311179408,1704970258111,-500.0,0.0003863,4]
[311179409,1704970258120,-500.0,0.0003863,4]
[311179410,1704970258129,-500.0,0.0003863,4]
[311179411,1704970258138,-500.0,0.0003863,4]
[311179412,1704970258148,-500.0,0.0003863,4]
[311179413,1704970258158,-871.78,0.0003863,4]
[311179414,1704970258168,-500.0,0.0003863,4]
[311179415,1704970258177,-500.0,0.0003863,4]
[311179416,1704970258187,-500.0,0.0003863,4]
[311179417,1704970258197,-500.0,0.0003863,4]
[311179418,1704970258207,-826.56,0.0003863,4]
[311179419,1704970258218,-500.0,0.0003863,4]
[311179420,1704970258227,-500.0,0.0003863,4]
[311179421,1704970258236,-579.69,0.0003863,5]
[311179422,1704970258245,-568.95,0.0003863,4]
[311179423,1704970258254,-500.0,0.0003863,4]
[311179424,1704970258264,-500.0,0.0003863,4]
[311179425,1704970258273,-500.0,0.0003863,4]
[311179426,1704970258282,-500.0,0.0003863,4]
[311179427,1704970258291,-1418.47,0.0003863,4]
[311179428,1704970258301,-832.56,0.0003863,4]
[311179429,1704970258310,-588.0,0.0003863,4]
[311179430,1704970258320,-678.71,0.0003863,4]
[311179431,1704970258329,-500.0,0.0003863,4]
[311179432,1704970258339,-500.0,0.0003863,4]
[311179433,1704970258350,-168.6269309,0.0003863,4]
[311179434,1704970258359,-500.0,0.0003863,4]
[311179435,1704970258369,-500.0,0.0003863,4]
[311179436,1704970258380,-681.92,0.0003863,4]
[311179437,1704970258390,-500.0,0.0003863,4]
[311179438,1704970258400,-500.0,0.0003863,4]
[311179439,1704970258410,-533.4,0.0003863,4]
[311179440,1704970258419,-976.2,0.0003863,5]
[311179441,1704970258430,-500.0,0.0003863,4]
[311179442,1704970258439,-500.0,0.0003863,4]
[311179443,1704970258449,-5800.39,0.0003863,4]
[311179444,1704970258459,-500.0,0.0003863,4]
[311179445,1704970258470,-507.71,0.0003863,4]
[311179446,1704970258480,-612.0,0.0003863,4]
[311179447,1704970258492,-500.0,0.0003863,4]
[311179448,1704970258501,-610.62,0.0003863,4]
[311179449,1704970258511,-446.08854317,0.0003863,4]
[311179450,1704970258520,-150.91204937,0.00038644,7]
[311179451,1704970258529,-161.13,0.0003865,2]
[311179452,1704970258539,-151.40111,0.00038698,8]
[311179453,1704970258549,-5031.63047126,0.000387,3]
[311179454,1704970258558,-6543.5649202,0.00038717,12]
[311179455,1704970258568,-151.13503063,0.00038722,2]
[311179456,1704970258578,-151.40111,0.00038798,8]
[311179457,1704970258587,-4723.31067119,0.000388,4]
[311179458,1704970258597,-600.3,0.000388,3]
[311179459,1704970258606,-600.3,0.000388,3]
[311179460,1704970258615,-600.3,0.000388,3]
[311179461,1704970258625,-600.3,0.000388,3]
[311179462,1704970258634,-600.3,0.000388,3]
[311179463,1704970258644,-600.3,0.000388,3]
[311179464,1704970258653,-600.3,0.000388,3]
[311179465,1704970258663,-600.3,0.000388,3]
[311179466,1704970258672,-600.3,0.000388,3]
[311179467,1704970258682,-600.3,0.000388,3]
[311179468,1704970258691,-600.3,0.000388,3]
[311179469,1704970258701,-600.3,0.000388,3]
[311179470,1704970258711,-600.3,0.000388,3]
[311179471,1704970258722,-600.3,0.000388,3]
[311179472,1704970258731,-600.3,0.000388,3]
[311179473,1704970258740,-600.3,0.000388,3]
[311179474,1704970258750,-600.3,0.000388,3]
[311179475,1704970258760,-600.3,0.000388,3]
[311179476,1704970258769,-600.3,0.000388,3]
[311179477,1704970258779,-600.3,0.000388,3]
[311179478,1704970258788,-559.80611919,0.00038811,2]
[311179479,1704970258798,-523.5,0.00038842,15]
[311179480,1704970258809,-58239.67970557,0.0003889,10]
[311179481,1704970258820,-229.784185,0.0003889,7]
[311179482,1704970258831,-229.784185,0.0003889,7]
[311179483,1704970258840,-151.0,0.0003889,7]
[311179484,1704970258849,-181.8135,0.0003889,7]
[311179485,1704970258859,-181.8135,0.0003889,7]
[311179486,1704970258869,-858.635661,0.0003889,7]
[311179487,1704970258881,-858.635661,0.0003889,7]
[311179488,1704970258891,-151.0,0.0003889,7]
[311179489,1704970258900,-180.606058,0.0003889,7]
[311179490,1704970258909,-151.0,0.0003889,7]
[311179491,1704970258919,-189.302742,0.0003889,7]
[311179492,1704970259037,-189.302742,0.0003889,7]
[311179493,1704970259052,-151.0,0.0003889,7]
[311179494,1704970259062,-952.01,0.00038893,2]
[311179495,1704970259072,-151.40111,0.00038898,8]
[311179496,1704970259081,-1015.5288201,0.000389,30]
[311179497,1704970259091,-1001.32147694,0.000389,2]
[311179498,1704970259100,-153.0,0.000389,7]
[311179499,1704970259109,-15080.96,0.000389,7]
[311179500,1704970259118,-500.0,0.00038904,4]
[311179501,1704970259128,-552.96,0.00038904,4]
[311179502,1704970259137,-610.54,0.00038904,4]
[311179503,1704970259146,-530.85,0.00038904,4]
[311179504,1704970259155,-500.0,0.00038904,4]
[311179505,1704970259164,-865.67,0.00038904,4]
[311179506,1704970259173,-500.0,0.00038904,4]
[311179507,1704970259182,-500.0,0.00038904,4]
[311179508,1704970259191,-500.0,0.00038904,4]
[311179509,1704970259200,-500.0,0.00038904,4]
[311179510,1704970259209,-242.43621318,0.00038904,4]
[311179511,1704970259220,-500.0,0.00038904,4]
[311179512,1704970259229,-500.0,0.00038904,4]
[311179513,1704970259238,-566.7,0.00038904,4]
[311179514,1704970259247,-973.2,0.00038904,4]
[311179515,1704970259257,-559.47,0.00038904,4]
[311179516,1704970259266,-554.87,0.00038904,4]
[311179517,1704970259275,-500.0,0.00038904,4]
[311179518,1704970259284,-500.0,0.00038904,4]
[311179519,1704970259293,-825.18,0.00038904,4]
[311179520,1704970259304,-500.0,0.00038904,4]
[311179521,1704970259314,-500.0,0.00038904,4]
[311179522,1704970259324,-500.0,0.00038904,4]
[311179523,1704970259334,-500.0,0.00038904,4]
[311179524,1704970259343,-532.95920443,0.00038904,4]
[311179525,1704970259353,-500.0,0.00038904,4]
[311179526,1704970259362,-500.0,0.00038904,4]
[311179527,1704970259371,-500.0,0.00038904,4]
[311179528,1704970259381,-500.0,0.00038904,4]
[311179529,1704970259390,-871.78,0.00038904,4]
[311179530,1704970259400,-500.0,0.00038904,4]
[311179531,1704970259410,-500.0,0.00038904,4]
[311179532,1704970259419,-500.0,0.00038904,4]
[311179533,1704970259430,-500.0,0.00038904,4]
[311179534,1704970259440,-826.56,0.00038904,4]
[311179535,1704970259449,-500.0,0.00038904,4]
[311179536,1704970259459,-500.0,0.00038904,4]
[311179537,1704970259470,-579.69,0.00038904,5]
[311179538,1704970259479,-568.95,0.00038904,4]
[311179539,1704970259489,-500.0,0.00038904,4]
[311179540,1704970259499,-500.0,0.00038904,4]
[311179541,1704970259508,-500.0,0.00038904,4]
[311179542,1704970259518,-500.0,0.00038904,4]
[311179543,1704970259527,-1418.47,0.00038904,4]
[311179544,1704970259535,-588.0,0.00038904,4]
[311179545,1704970259544,-678.71,0.00038904,4]
[311179546,1704970259553,-832.56,0.00038904,4]
[311179547,1704970259563,-500.0,0.00038904,4]
[311179548,1704970259572,-314.07938906,0.00038904,4]
[311179549,1704970259581,-500.0,0.00038904,4]
[311179550,1704970259590,-500.0,0.00038904,4]
[311179551,1704970259599,-681.92,0.00038904,4]
[311179552,1704970259609,-500.0,0.00038904,4]
[311179553,1704970259618,-500.0,0.00038904,4]
[311179554,1704970259627,-533.4,0.00038904,4]
[311179555,1704970259636,-976.2,0.00038904,5]
[311179556,1704970259646,-500.0,0.00038904,4]
[311179557,1704970259655,-500.0,0.00038904,4]
[311179558,1704970259664,-5800.39,0.00038904,4]
[311179559,1704970259674,-500.0,0.00038904,4]
[311179560,1704970259685,-507.71,0.00038904,4]
[311179561,1704970259695,-612.0,0.00038904,4]
[311179562,1704970259706,-500.0,0.00038904,4]
[311179563,1704970259715,-610.62,0.00038904,4]
[311179564,1704970259724,-205.97,0.00038957,2]
[311179565,1704970259734,-1865.7379561,0.00038973,2]
[311179566,1704970259743,-13581.4192525,0.00038973,2]
[311179567,1704970259753,-908.26727,0.00038973,2]
[311179568,1704970259762,-1184.851182,0.00038977,2]
[311179569,1704970259771,-594.856558,0.00038977,2]
[311179570,1704970259781,-281.73212903,0.0003898,2]
[311179571,1704970259790,-165.291573,0.0003899,2]
[311179572,1704970259800,-940.51163004,0.00038996,9]
[311179573,1704970259809,-151.40111,0.00038998,8]
[311179574,1704970259818,-100000.0,0.00039,3]
[311179575,1704970259828,-1404.95150672,0.00039,2]
[311179576,1704970259837,-1427.43973993,0.00039,2]
[311179577,1704970259846,-209260.56103333,0.00039,2]
[311179578,1704970259856,-500.0,0.00039,30]
[311179579,1704970259865,-500.0,0.00039,30]
[311179580,1704970259880,-500.0,0.00039,30]
[311179581,1704970259890,-500.0,0.00039,30]
[311179582,1704970259900,-500.0,0.00039,30]
[311179583,1704970259910,-300.0,0.00039,40]
[311179584,1704970259919,-2581.11720346,0.00039,7]
[311179585,1704970259929,-2000.0,0.00039,16]
[311179586,1704970259938,-167782.28883337,0.00039,2]
[311179587,1704970260098,-66986.50911469,0.00039,2]
[311179588,1704970260108,-13293.32124838,0.00039,2]
[311179589,1704970260117,-1000.0,0.00039,2]
[311179590,1704970260127,-983.09121873,0.00039,4]
[311179591,1704970260136,-14201.07,0.00039,7]
[311179592,1704970260145,-9114.5,0.00039,7]
[311179593,1704970260154,-229.784185,0.00039,7]
[311179594,1704970260163,-229.784185,0.00039,7]
[311179595,1704970260173,-191.969214,0.00039,7]
[311179596,1704970260183,-181.8135,0.00039,7]
[311179597,1704970260193,-181.8135,0.00039,7]
[311179598,1704970260203,-858.635661,0.00039,7]
[311179599,1704970260212,-858.635653,0.00039,7]
[311179600,1704970260224,-151.0,0.00039,7]
[311179601,1704970260233,-3000.0,0.00039,21]
[311179602,1704970260242,-300.0,0.00039,13]
[311179603,1704970260252,-151.0,0.00039,7]
[311179604,1704970260262,-189.302742,0.00039,7]
[311179605,1704970260271,-189.302742,0.00039,7]
[311179606,1704970260281,-788.0791648,0.00039,2]
[311179607,1704970260290,-151.0,0.00039,7]
[311179608,1704970260299,-3000.0,0.0003901,21]
[311179609,1704970260309,-5463.005675,0.0003902,21]
[311179610,1704970260318,-6543.5649202,0.00039081,12]
[311179611,1704970260327,-151.40111,0.00039098,8]
[311179612,1704970260336,-1000.0,0.000391,30]
[311179613,1704970260345,-500.0,0.00039178,4]
[311179614,1704970260354,-552.96,0.00039178,4]
[311179615,1704970260363,-610.54,0.00039178,4]
[311179616,1704970260372,-530.85,0.00039178,4]
[311179617,1704970260382,-500.0,0.00039178,4]
[311179618,1704970260392,-865.67,0.00039178,4]
[311179619,1704970260401,-500.0,0.00039178,4]
[311179620,1704970260412,-500.0,0.00039178,4]
[311179621,1704970260422,-500.0,0.00039178,4]
[311179622,1704970260431,-500.0,0.00039178,4]
[311179623,1704970260443,-500.0,0.00039178,4]
[311179624,1704970260454,-500.0,0.00039178,4]
[311179625,1704970260463,-566.7,0.00039178,4]
[311179626,1704970260474,-973.2,0.00039178,4]
[311179627,1704970260483,-559.47,0.00039178,4]
[311179628,1704970260494,-554.87,0.00039178,4]
[311179629,1704970260503,-500.0,0.00039178,4]
[311179630,1704970260514,-586.35859682,0.00039178,4]
[311179631,1704970260523,-825.18,0.00039178,4]
[311179632,1704970260533,-500.0,0.00039178,4]
[311179633,1704970260544,-500.0,0.00039178,4]
[311179634,1704970260553,-500.0,0.00039178,4]
[311179635,1704970260564,-500.0,0.00039178,4]
[311179636,1704970260573,-500.0,0.00039178,4]
[311179637,1704970260584,-423.32285213,0.00039178,4]
[311179638,1704970260595,-500.0,0.00039178,4]
[311179639,1704970260606,-500.0,0.00039178,4]
[311179640,1704970260615,-871.78,0.00039178,4]
[311179641,1704970260625,-500.0,0.00039178,4]
[311179642,1704970260634,-500.0,0.00039178,4]
[311179643,1704970260644,-500.0,0.00039178,4]
[311179644,1704970260654,-500.0,0.00039178,4]
[311179645,1704970260663,-826.56,0.00039178,4]
[311179646,1704970260673,-500.0,0.00039178,4]
[311179647,1704970260682,-500.0,0.00039178,4]
[311179648,1704970260690,-579.69,0.00039178,5]
[311179649,1704970260699,-568.95,0.00039178,4]
[311179650,1704970260709,-500.0,0.00039178,4]
[311179651,1704970260719,-500.0,0.00039178,4]
[311179652,1704970260728,-500.0,0.00039178,4]
[311179653,1704970260737,-500.0,0.00039178,4]
[311179654,1704970260746,-1418.47,0.00039178,4]
[311179655,1704970260755,-588.0,0.00039178,4]
[311179656,1704970260764,-678.71,0.00039178,4]
[311179657,1704970260774,-832.56,0.00039178,4]
[311179658,1704970260783,-500.0,0.00039178,4]
[311179659,1704970260793,-500.0,0.00039178,4]
[311179660,1704970260802,-500.0,0.00039178,4]
[311179661,1704970260812,-681.92,0.00039178,4]
[311179662,1704970260822,-264.15411505,0.00039178,4]
[311179663,1704970260831,-500.0,0.00039178,4]
[311179664,1704970260841,-533.4,0.00039178,4]
[311179665,1704970260850,-976.2,0.00039178,5]
[311179666,1704970260860,-500.0,0.00039178,4]
[311179667,1704970260871,-500.0,0.00039178,4]
[311179668,1704970260882,-5800.39,0.00039178,4]
[311179669,1704970260892,-500.0,0.00039178,4]
[311179670,1704970260902,-507.71,0.00039178,4]
[311179671,1704970260912,-612.0,0.00039178,4]
[311179672,1704970260921,-500.0,0.00039178,4]
[311179673,1704970260932,-610.62,0.00039178,4]
[311179674,1704970260941,-209.92,0.00039178,2]
[311179675,1704970260950,-151.40111,0.00039198,8]
[311179676,1704970260961,-1000.0,0.000392,30]
[311179677,1704970260972,-151.13503063,0.00039202,3]
[311179678,1704970260983,-882.03,0.0003926,2]
[311179679,1704970260992,-154.46462244,0.00039286,7]
[311179680,1704970261001,-151.40111,0.00039298,8]
[311179681,1704970261010,-15080.96,0.000393,7]
[311179682,1704970261019,-229.784185,0.000393,7]
[311179683,1704970261028,-229.784181,0.000393,7]
[311179684,1704970261037,-181.8135,0.000393,7]
[311179685,1704970261046,-181.8135,0.000393,7]
[311179686,1704970261055,-151.0,0.000393,7]
[311179687,1704970261064,-192.83,0.00039309,2]
[311179688,1704970261074,-151.40111,0.00039398,8]
[311179689,1704970261084,-14201.07,0.000394,7]
[311179690,1704970261093,-5036.63540823,0.000394,7]
[311179691,1704970261106,-4077.86459177,0.000394,7]
[311179692,1704970261116,-1000.0,0.000394,2]
[311179693,1704970261126,-151.0,0.000394,7]
[311179694,1704970261135,-189.302742,0.000394,7]
[311179695,1704970261145,-189.30275,0.000394,7]
[311179696,1704970261155,-151.0,0.000394,7]
[311179697,1704970261164,-150.91204937,0.0003941,7]
[311179698,1704970261173,-196.99,0.00039411,2]
[311179699,1704970261183,-5045.04163842,0.00039445,13]
[311179700,1704970261194,-930.52585012,0.00039445,13]
[311179701,1704970261206,-567.99743166,0.00039445,13]
[311179702,1704970261216,-150.0,0.00039451,2]
[311179703,1704970261225,-150.0,0.00039451,2]
[311179704,1704970261235,-500.0,0.00039452,4]
[311179705,1704970261244,-552.96,0.00039452,4]
[311179706,1704970261254,-610.54,0.00039452,4]
[311179707,1704970261265,-280.42007984,0.00039452,4]
[311179708,1704970261277,-250.42992016,0.00039452,4]
[311179709,1704970261287,-500.0,0.00039452,4]
[311179710,1704970261297,-865.67,0.00039452,4]
[311179711,1704970261432,-500.0,0.00039452,4]
[311179712,1704970261443,-500.0,0.00039452,4]
[311179713,1704970261453,-500.0,0.00039452,4]
[311179714,1704970261462,-500.0,0.00039452,4]
[311179715,1704970261476,-226.14561227,0.00039452,4]
[311179716,1704970261485,-500.0,0.00039452,4]
[311179717,1704970261495,-566.7,0.00039452,4]
[311179718,1704970261505,-559.47,0.00039452,4]
[311179719,1704970261514,-973.2,0.00039452,4]
[311179720,1704970261523,-554.87,0.00039452,4]
[311179721,1704970261533,-500.0,0.00039452,4]
[311179722,1704970261542,-27.31870144,0.00039452,4]
[311179723,1704970261568,-334.09509581,0.0003659,2]
[311179724,1704970261577,-21.20490419,0.00039452,4]
[311179725,1704970261589,-435.2938084,0.00039452,4]
[311179726,1704970261600,-341.36258597,0.00039452,4]
[311179727,1704970261609,-249.0333764,0.00039452,4]
[311179728,1704970261704,-558.25,0.00036702,10]
[311179729,1704970261713,-154.0,0.00037038,2]
[311179730,1704970261726,-250.9666236,0.00039452,4]
[311179731,1704970261737,-500.0,0.00039452,4]
[311179732,1704970261748,-500.0,0.00039452,4]
[311179733,1704970261758,-500.0,0.00039452,4]
[311179734,1704970261768,-500.0,0.00039452,4]
[311179735,1704970261777,-500.0,0.00039452,4]
[311179736,1704970261788,-500.0,0.00039452,4]
[311179737,1704970261797,-871.78,0.00039452,4]
[311179738,1704970261807,-500.0,0.00039452,4]
[311179739,1704970261817,-500.0,0.00039452,4]
[311179740,1704970261827,-500.0,0.00039452,4]
[311179741,1704970261836,-194.58846366,0.00039452,4]
[311179742,1704970261848,-826.56,0.00039452,4]
[311179743,1704970261857,-500.0,0.00039452,4]
[311179744,1704970261867,-579.69,0.00039452,5]
[311179745,1704970261877,-500.0,0.00039452,4]
[311179746,1704970261891,-568.95,0.00039452,4]
[311179747,1704970261900,-500.0,0.00039452,4]
[311179748,1704970261910,-500.0,0.00039452,4]
[311179749,1704970261919,-500.0,0.00039452,4]
[311179750,1704970261929,-500.0,0.00039452,4]
[311179751,1704970261938,-1418.47,0.00039452,4]
[311179752,1704970261947,-588.0,0.00039452,4]
[311179753,1704970261959,-678.71,0.00039452,4]
[311179754,1704970261969,-832.56,0.00039452,4]
[311179755,1704970261979,-500.0,0.00039452,4]
[311179756,1704970261989,-500.0,0.00039452,4]
[311179757,1704970261999,-500.0,0.00039452,4]
[311179758,1704970262009,-681.92,0.00039452,4]
[311179759,1704970262019,-341.97680227,0.00039452,4]
[311179760,1704970262029,-533.4,0.00039452,4]
[311179761,1704970262038,-976.2,0.00039452,5]
[311179762,1704970262048,-500.0,0.00039452,4]
[311179763,1704970262058,-500.0,0.00039452,4]
[311179764,1704970262068,-5800.39,0.00039452,4]
[311179765,1704970262078,-507.71,0.00039452,4]
[311179766,1704970262087,-612.0,0.00039452,4]
[311179767,1704970262097,-500.0,0.00039452,4]
[311179768,1704970262107,-610.62,0.00039452,4]
[311179769,1704970262117,-1184.851182,0.00039458,2]
[311179770,1704970262127,-594.856558,0.00039458,2]
[311179771,1704970262137,-151.40111,0.00039498,8]
[311179772,1704970262146,-22227.31032276,0.000395,4]
[311179773,1704970262156,-5179.81617148,0.000395,2]
[311179774,1704970262165,-3301.085,0.00039501,2]
[311179775,1704970262175,-9662.88677618,0.00039501,2]
[311179776,1704970262185,-4899.52684213,0.00039501,2]
[311179777,1704970262196,-2845.74773785,0.00039501,2]
[311179778,1704970262205,-832.06,0.00039502,2]
[311179779,1704970262215,-4012.748737,0.00039565,2]
[311179780,1704970262226,-940.51163004,0.00039597,9]
[311179781,1704970262235,-151.40111,0.00039598,8]
[311179782,1704970262245,-44181.47936569,0.000396,2]
[311179783,1704970262257,-330.82641282,0.000396,2]
[311179784,1704970262269,-1977.21614023,0.000396,2]
[311179785,1704970262280,-1921.87499979,0.000396,2]
[311179786,1704970262297,-23370.648,0.000396,2]
[311179787,1704970262309,-10210.2,0.000396,2]
[311179788,1704970262321,-564.90046924,0.000396,2]
[311179789,1704970262341,-5088.19788302,0.000396,2]
[311179790,1704970262352,-2700.33431778,0.000396,2]
[311179791,1704970262364,-399.14401187,0.000396,2]
[311179792,1704970262456,-624.05958503,0.000396,2]
[311179793,1704970262469,-4146.24122259,0.000396,2]
[311179794,1704970262480,-440.41377552,0.000396,2]
[311179795,1704970262491,-1146.63543381,0.000396,2]
[311179796,1704970262509,-307.97917371,0.00036712,4]
[311179797,1704970262521,-192.02082629,0.00036712,4]
[311179798,1704970262531,-766.06293594,0.000396,2]
[311179799,1704970262540,-393.09717153,0.00039603,2]
[311179800,1704970262551,-5406.90282847,0.00039603,2]
[311179801,1704970262561,-5800.0,0.00039612,2]
[311179802,1704970262570,-5800.0,0.0003962,2]
[311179803,1704970262579,-5800.0,0.00039628,2]